bitfinex/quotes_SOLUSD_20251118
["timestamp","ask_amount","ask_price","bid_price","bid_amount"]
[1763493617180,0.79,142.23,142.22,4.18]
[1763493620445,0.79,142.23,142.2,2.47400764]
[1763493620446,3.26400764,142.23,142.19,4.18]
[1763493620660,2.47400764,142.22,142.19,4.18]
[1763493620954,3.14400764,142.22,142.19,4.18]
[1763493621154,0.67,142.21,142.19,4.18]
[1763493621455,0.67,142.21,142.19,6.65400764]
[1763493621666,0.1,142.23,142.2,9.78882769]
[1763493621967,0.67,142.21,142.19,6.65400764]
[1763493622164,0.67,142.21,142.2,2.47400764]
[1763493622471,0.1,142.23,142.2,2.47400764]
[1763493622696,0.77,142.23,142.2,2.47400764]
[1763493623262,0.77,142.23,142.19,6.65400764]
[1763493624052,0.77,142.23,142.2,4.18]
[1763493624673,3.24400764,142.23,142.2,4.18]
[1763493624864,4.63774876,142.23,142.2,4.18]
[1763493625180,0.67,142.22,142.2,4.18]
[1763493625675,0.67,142.22,142.17,3.86774876]
[1763493625976,0.67,142.22,142.18,4.18]
[1763493627387,0.67,142.22,142.16,8.04774876]
[1763493627593,3.86774876,142.2,142.16,4.18]
[1763493627765,3.86774876,142.18,142.13,3.86774876]
[1763493627966,3.86774876,142.18,142.13,8.04774876]
[1763493628163,0.67,142.17,142.14,3.86774876]
[1763493630477,0.67,142.17,142.15,3.86774876]
[1763493630890,0.67,142.19,142.16,3.86774876]
[1763493631063,3.86774876,142.21,142.16,3.86774876]
[1763493631269,18.92508617,142.23,142.17,3.86774876]
[1763493631270,4.53774876,142.22,142.17,3.86774876]
[1763493631686,4.53774876,142.21,142.16,3.86774876]
[1763493632064,0.67,142.2,142.16,3.86774876]
[1763493632269,0.67,142.2,142.16,8.04774876]
[1763493633066,0.67,142.2,142.17,3.86774876]
[1763493633284,0.67,142.2,142.16,8.04774876]
[1763493634996,0.70412617,142.22,142.19,3.86774876]
[1763493634997,0.67,142.22,142.19,3.86774876]
[1763493636676,0.67,142.22,142.16,4.18]
[1763493637002,4.53774876,142.22,142.18,3.86774876]
[1763493637297,0.67,142.22,142.18,3.86774876]
[1763493637504,0.67,142.21,142.18,3.86774876]
[1763493638998,2.63774876,142.23,142.18,3.86774876]
[1763493639305,3.86774876,142.23,142.18,4.51774876]
[1763493639500,3.86774876,142.23,142.18,3.86774876]
[1763493640684,4.57187493,142.22,142.16,4.18]
[1763493640899,3.86774876,142.22,142.17,4.51774876]
[1763493641206,0.67,142.21,142.17,4.51774876]
[1763493641507,0.67,142.21,142.17,3.86774876]
[1763493642005,0.67,142.21,142.17,4.51774876]
[1763493642208,0.67,142.21,142.17,3.86774876]
[1763493643582,4.53774876,142.21,142.16,4.18]
[1763493643783,3.86774876,142.2,142.16,4.18]
[1763493644106,4.53774876,142.2,142.16,4.18]
[1763493644300,0.67,142.19,142.16,4.18]
[1763493645196,0.67,142.19,142.16,8.04774876]
[1763493645999,0.67,142.21,142.18,3.86774876]
[1763493646510,0.67,142.21,142.18,4.53774876]
[1763493646681,0.67,142.21,142.19,3.86774876]
[1763493647700,0.67,142.21,142.18,4.53774876]
[1763493648011,0.67,142.21,142.17,3.86774876]
[1763493648382,3.86774876,142.2,142.13,10.45882769]
[1763493648592,3.86774876,142.2,142.15,3.86774876]
[1763493648798,0.67,142.19,142.16,3.86774876]
[1763493649183,0.67,142.19,142.13,4.18]
[1763493649498,0.67,142.19,142.13,8.04774876]
[1763493649697,4.53774876,142.19,142.13,8.04774876]
[1763493650005,0.67,142.19,142.16,3.86774876]
[1763493651899,0.67,142.19,142.14,0.67]
[1763493652104,0.67,142.19,142.16,3.86774876]
[1763493652703,0.67,142.19,142.14,0.67]
[1763493653014,0.67,142.19,142.16,3.86774876]
[1763493653514,0.67,142.19,142.15,3.86774876]
[1763493655223,4.53774876,142.19,142.13,4.18]
[1763493655410,3.86774876,142.18,142.13,3.86774876]
[1763493655599,4.53774876,142.18,142.12,3.86774876]
[1763493655796,4.53774876,142.17,142.12,3.86774876]
[1763493656312,0.67,142.16,142.13,3.86774876]
[1763493657519,0.67,142.16,142.14,3.86774876]
[1763493658109,0.67,142.16,142.13,3.86774876]
[1763493658621,0.67,142.16,142.12,0.67]
[1763493658920,0.67,142.16,142.13,3.86774876]
[1763493661003,0.67,142.16,142.12,3.86774876]
[1763493661607,3.86774876,142.14,142.08,9.78882769]
[1763493661813,3.86774876,142.13,142.08,3.86774876]
[1763493662222,0.67,142.13,142.11,3.86774876]
[1763493662528,3.86774876,142.15,142.09,0.67]
[1763493662772,0.67,142.13,142.08,10.45882769]
[1763493663034,0.67,142.13,142.09,3.86774876]
[1763493663329,0.67,142.13,142.08,10.45882769]
[1763493663511,0.67,142.13,142.11,3.86774876]
[1763493663905,0.67,142.13,142.1,3.86774876]
[1763493664332,3.86774876,142.15,142.11,3.86774876]
[1763493664546,0.67,142.24,142.17,9.78882769]
[1763493664844,0.1,142.27,142.22,3.86774876]
[1763493665026,0.77,142.27,142.22,8.06774876]
[1763493665229,0.77,142.27,142.23,3.86774876]
[1763493666757,0.77,142.27,142.22,4.87]
[1763493666758,0.77,142.27,142.24,3.86774876]
[1763493667120,0.77,142.27,142.23,3.86774876]
[1763493671036,0.77,142.27,142.22,8.73774876]
[1763493671234,0.77,142.27,142.23,3.86774876]
[1763493671940,0.77,142.27,142.22,8.73774876]
[1763493673256,0.77,142.27,142.23,3.86774876]
[1763493674741,0.77,142.27,142.22,4.2]
[1763493674953,0.77,142.27,142.22,8.74774876]
[1763493675346,0.77,142.27,142.23,8.04774876]
[1763493676136,0.77,142.27,142.23,3.86774876]
[1763493676337,0.1,142.27,142.25,3.86774876]
[1763493676638,0.1,142.27,142.26,8.04774876]
[1763493676939,0.1,142.27,142.26,17.83657645]
[1763493677164,0.1,142.27,142.26,18.51657645]
[1763493678146,0.1,142.27,142.26,14.64882769]
[1763493678349,0.1,142.27,142.26,18.51657645]
[1763493681269,0.1,142.27,142.26,14.33657645]
[1763493681444,0.1,142.27,142.26,18.51657645]
[1763493682264,0.1,142.27,142.25,3.86774876]
[1763493682440,0.78,142.27,142.25,3.86774876]
[1763493682641,0.78,142.27,142.23,3.86774876]
[1763493682954,0.78,142.27,142.25,4.18]
[1763493683647,4.64774876,142.27,142.22,3.86774876]
[1763493683848,4.64774876,142.27,142.23,4.18]
[1763493684047,0.68,142.26,142.23,4.18]
[1763493684259,0.68,142.26,142.23,8.04774876]
[1763493684653,0.1,142.27,142.25,3.86774876]
[1763493684854,0.68,142.26,142.24,2.47325219]
[1763493685059,0.68,142.26,142.23,6.65325219]
[1763493685367,0.68,142.26,142.23,7.35325219]
[1763493687658,0.68,142.26,142.23,6.65325219]
[1763493688064,0.68,142.26,142.23,4.18]
[1763493689267,0.68,142.26,142.23,6.65325219]
[1763493689463,0.1,142.27,142.23,6.65325219]
[1763493689665,0.1,142.27,142.24,3.17325219]
[1763493690054,0.1,142.27,142.25,0.7]
[1763493690284,0.78,142.27,142.24,3.17325219]
[1763493690467,0.1,142.27,142.24,3.17325219]
[1763493690766,0.1,142.27,142.24,2.47325219]
[1763493690965,0.68,142.26,142.23,6.65325219]
[1763493691272,0.78,142.27,142.23,7.35325219]
[1763493692143,0.1,142.27,142.24,3.17325219]
[1763493692362,0.78,142.27,142.24,2.47325219]
[1763493692754,0.78,142.27,142.23,4.18]
[1763493692941,0.78,142.27,142.23,7.35325219]
[1763493693658,0.78,142.27,142.23,4.88]
[1763493694070,0.78,142.27,142.23,7.35325219]
[1763493694249,0.78,142.27,142.23,4.88]
[1763493694647,2.47325219,142.24,142.18,2.47325219]
[1763493694855,3.15325219,142.23,142.18,2.47325219]
[1763493695165,3.15325219,142.23,142.18,4.18]
[1763493695346,0.1,142.27,142.2,2.47325219]
[1763493695347,0.68,142.25,142.2,2.47325219]
[1763493695548,3.15325219,142.25,142.2,2.47325219]
[1763493695882,0.68,142.25,142.2,3.17325219]
[1763493696053,0.68,142.24,142.2,3.17325219]
[1763493696877,0.68,142.24,142.19,2.47325219]
[1763493697177,0.68,142.24,142.19,3.17325219]
[1763493697572,0.68,142.24,142.2,2.47325219]
[1763493697960,0.68,142.24,142.19,3.17325219]
[1763493698153,0.68,142.24,142.2,3.17325219]
[1763493699077,0.68,142.24,142.19,2.47325219]
[1763493699458,0.68,142.24,142.2,2.47325219]
[1763493702877,0.68,142.24,142.18,4.9]
[1763493702878,0.68,142.24,142.19,2.47325219]
[1763493703084,0.68,142.24,142.2,2.47325219]
[1763493706075,0.68,142.24,142.2,3.19325219]
[1763493706278,0.68,142.24,142.2,2.47325219]
[1763493706473,0.68,142.24,142.21,2.47325219]
[1763493706657,2.57325219,142.27,142.21,2.47325219]
[1763493706658,0.1,142.27,142.22,2.47325219]
[1763493706860,0.7,142.26,142.22,2.47325219]
[1763493707079,0.7,142.26,142.23,2.47325219]
[1763493707285,0.7,142.26,142.22,3.19325219]
[1763493707664,0.7,142.26,142.23,2.47325219]
[1763493709272,0.7,142.26,142.22,2.47325219]
[1763493709979,0.7,142.26,142.22,3.19325219]
[1763493710189,0.7,142.26,142.22,2.47325219]
[1763493710559,1.40412617,142.26,142.22,2.47325219]
[1763493710758,1.40412617,142.26,142.21,2.47325219]
[1763493711064,0.7,142.25,142.21,2.47325219]
[1763493711390,0.7,142.25,142.21,3.19325219]
[1763493711558,0.7,142.25,142.21,2.47325219]
[1763493712583,0.7,142.25,142.19,18.84096]
[1763493712584,0.70412617,142.24,142.19,2.47325219]
[1763493712787,0.7,142.23,142.2,2.47325219]
[1763493713480,0.7,142.23,142.19,2.47325219]
[1763493713983,0.7,142.23,142.2,2.47325219]
[1763493714964,1.40412617,142.25,142.21,0.72]
[1763493715309,1.40412617,142.25,142.22,2.47325219]
[1763493715588,0.7,142.24,142.21,2.47325219]
[1763493716293,0.7,142.24,142.22,2.47325219]
[1763493720160,18.12096,142.26,142.22,3.19325219]
[1763493720161,1.40412617,142.26,142.22,3.19325219]
[1763493720379,0.7,142.25,142.21,18.12096]
[1763493720583,0.7,142.25,142.22,2.47325219]
[1763493720785,0.70412617,142.26,142.21,18.12096]
[1763493720982,1.50412617,142.27,142.24,2.47325219]
[1763493721778,0.7,142.26,142.24,2.47325219]
[1763493721962,0.7,142.26,142.23,2.47325219]
[1763493722163,0.80412617,142.27,142.24,2.47325219]
[1763493722370,0.7,142.26,142.24,2.47325219]
[1763493723768,0.7,142.26,142.23,2.47325219]
[1763493724394,0.7,142.26,142.22,2.47325219]
[1763493724777,0.7,142.26,142.23,2.47325219]
[1763493724974,19.62508617,142.27,142.23,2.47325219]
[1763493725394,0.7,142.26,142.23,2.47325219]
[1763493728002,0.7,142.26,142.24,2.47325219]
[1763493728176,18.22096,142.27,142.25,2.47325219]
[1763493728375,0.7,142.26,142.24,2.47325219]
[1763493728802,18.22096,142.27,142.24,3.19325219]
[1763493728984,18.92096,142.27,142.24,3.19325219]
[1763493729169,18.92096,142.27,142.24,2.47325219]
[1763493729483,0.1,142.27,142.24,2.47325219]
[1763493729688,0.7,142.26,142.24,2.47325219]
[1763493731104,18.92096,142.27,142.25,2.47325219]
[1763493731406,0.7,142.26,142.24,2.47325219]
[1763493735099,0.7,142.26,142.23,3.19325219]
[1763493735490,0.7,142.26,142.23,2.47325219]
[1763493735693,0.7,142.26,142.23,3.14325219]
[1763493736097,0.7,142.26,142.23,2.47325219]
[1763493736335,0.70412617,142.25,142.21,2.47325219]
[1763493736796,0.66,142.24,142.21,2.47325219]
[1763493738006,0.66,142.24,142.21,3.14325219]
[1763493738316,0.66,142.24,142.21,2.47325219]
[1763493739212,0.66,142.24,142.22,2.47325219]
[1763493739597,0.66,142.24,142.19,4.18]
[1763493739598,0.66,142.24,142.21,2.47325219]
[1763493740320,0.66,142.24,142.2,3.14325219]
[1763493740505,0.66,142.24,142.21,2.47325219]
[1763493740820,0.66,142.24,142.16,18.12096]
[1763493740821,0.66,142.24,142.13,9.78882769]
[1763493741003,2.47325219,142.22,142.17,2.47325219]
[1763493741205,18.12096,142.23,142.17,2.47325219]
[1763493741206,20.59421219,142.23,142.17,2.47325219]
[1763493741409,3.15325219,142.22,142.16,2.47325219]
[1763493741612,3.15325219,142.22,142.17,2.47325219]
[1763493741923,0.68,142.21,142.17,2.47325219]
[1763493742297,0.68,142.21,142.17,0.68]
[1763493742613,0.68,142.21,142.18,2.47325219]
[1763493742821,2.47325219,142.19,142.14,0.68]
[1763493743030,7.33325219,142.21,142.15,2.47325219]
[1763493743226,0.68,142.2,142.16,2.47325219]
[1763493743432,0.68,142.2,142.15,2.47325219]
[1763493743812,3.15325219,142.2,142.15,2.47325219]
[1763493744127,0.68,142.2,142.15,2.47325219]
[1763493744329,0.68,142.19,142.15,3.15325219]
[1763493744513,0.68,142.19,142.16,2.47325219]
[1763493744930,28.61391386,142.24,142.15,0.68]
[1763493744931,0.70412617,142.24,142.18,2.47325219]
[1763493745121,0.68,142.22,142.18,2.47325219]
[1763493745311,3.15325219,142.22,142.16,2.47325219]
[1763493745632,20.59421219,142.21,142.15,2.47325219]
[1763493745840,2.47325219,142.2,142.15,2.47325219]
[1763493746033,3.15325219,142.2,142.14,3.15325219]
[1763493746336,3.15325219,142.19,142.14,2.47325219]
[1763493746515,3.15325219,142.19,142.11,3.15325219]
[1763493746516,2.47325219,142.16,142.11,3.15325219]
[1763493746827,3.87207498,142.16,142.11,4.55207498]
[1763493747033,0.68,142.15,142.11,4.55207498]
[1763493747535,18.80096,142.17,142.14,3.87207498]
[1763493747843,0.68,142.16,142.14,3.87207498]
[1763493748627,0.68,142.16,142.06,3.87207498]
[1763493748628,3.87207498,142.15,142.06,3.87207498]
[1763493748819,3.87207498,142.12,142.06,3.87207498]
[1763493749136,3.87207498,142.12,142.07,3.87207498]
[1763493749314,0.68,142.11,142.07,3.87207498]
[1763493749627,4.55207498,142.11,142.05,4.75207498]
[1763493749925,4.55207498,142.11,142.06,0.68]
[1763493750129,0.68,142.1,142.06,0.68]
[1763493751323,0.68,142.11,142.06,4.55207498]
[1763493751834,0.68,142.11,142.07,0.68]
[1763493752410,3.87207498,142.11,142.07,0.68]
[1763493752614,0.68,142.13,142.07,0.68]
[1763493752826,3.87207498,142.11,142.07,0.68]
[1763493753430,4.55207498,142.1,142.07,0.68]
[1763493753639,3.87207498,142.09,142.07,0.68]
[1763493753928,3.87207498,142.09,142.05,18.32096]
[1763493753929,3.87207498,142.08,142.05,0.2]
[1763493754148,18.12096,142.11,142.05,0.2]
[1763493754314,3.87207498,142.08,142.05,0.2]
[1763493754508,4.55207498,142.09,142.05,0.2]
[1763493754709,4.55207498,142.09,142.06,0.68]
[1763493755208,18.12096,142.11,142.06,0.68]
[1763493755209,3.87207498,142.11,142.06,0.68]
[1763493755411,3.87207498,142.1,142.06,0.68]
[1763493756037,3.87207498,142.11,142.06,0.68]
[1763493756421,4.55207498,142.11,142.06,0.68]
[1763493758227,3.87207498,142.11,142.06,0.68]
[1763493758748,0.70412617,142.13,142.07,3.87207498]
[1763493758943,4.57620115,142.13,142.07,3.87207498]
[1763493759245,4.57620115,142.13,142.08,0.68]
[1763493759647,5.25620115,142.13,142.08,0.68]
[1763493760850,4.55207498,142.12,142.08,0.68]
[1763493761662,4.57620115,142.13,142.08,0.68]
[1763493761864,5.25620115,142.13,142.08,0.68]
[1763493762032,1.38412617,142.13,142.08,4.55207498]
[1763493762240,0.72,142.14,142.09,3.87207498]
[1763493762565,0.72,142.14,142.09,22.68303498]
[1763493762857,4.57620115,142.16,142.1,4.56207498]
[1763493763029,0.70412617,142.16,142.11,8.05207498]
[1763493763229,3.87207498,142.16,142.11,4.87]
[1763493763436,4.59207498,142.16,142.12,0.69]
[1763493764436,0.70412617,142.19,142.13,3.87207498]
[1763493764636,5.29620115,142.19,142.13,3.87207498]
[1763493764848,3.87207498,142.18,142.13,0.69]
[1763493765027,0.72,142.18,142.13,4.56207498]
[1763493765224,0.72,142.17,142.13,4.56207498]
[1763493765449,0.72,142.18,142.14,0.69]
[1763493765846,0.72,142.18,142.14,4.87]
[1763493766049,4.57620115,142.19,142.14,4.87]
[1763493766348,0.72,142.19,142.15,0.69]
[1763493767359,4.59207498,142.21,142.15,4.56207498]
[1763493767563,18.12096,142.2,142.15,4.56207498]
[1763493767761,19.54508617,142.2,142.14,3.87207498]
[1763493768046,0.72,142.19,142.15,4.87]
[1763493768650,4.59207498,142.19,142.15,4.87]
[1763493769341,4.59207498,142.19,142.13,0.69]
[1763493769342,0.72,142.18,142.13,0.69]
[1763493769549,4.59207498,142.18,142.14,4.18]
[1763493769948,4.59207498,142.17,142.14,18.12096]
[1763493770253,0.72,142.17,142.14,18.12096]
[1763493770855,0.72,142.17,142.13,22.99096]
[1763493771071,4.59207498,142.17,142.11,4.56207498]
[1763493771363,3.87207498,142.16,142.11,4.18]
[1763493771537,4.59207498,142.16,142.11,4.18]
[1763493771738,0.72,142.15,142.11,4.87]
[1763493771935,4.59207498,142.15,142.1,22.30096]
[1763493772337,4.59207498,142.14,142.09,0.69]
[1763493772548,4.59207498,142.14,142.1,4.18]
[1763493772752,0.72,142.13,142.1,4.18]
[1763493773135,4.59207498,142.13,142.1,4.18]
[1763493773955,0.72,142.13,142.1,4.87]
[1763493774845,5.29620115,142.15,142.11,0.69]
[1763493775860,4.59207498,142.15,142.11,0.69]
[1763493776059,0.72,142.15,142.11,0.69]
[1763493776365,0.72,142.15,142.11,4.56207498]
[1763493776541,0.72,142.15,142.11,0.69]
[1763493778252,4.59207498,142.15,142.11,0.69]
[1763493779168,0.72,142.14,142.09,0.69]
[1763493779479,3.87207498,142.12,142.1,4.18]
[1763493779660,3.87207498,142.12,142.08,22.30096]
[1763493779839,4.59207498,142.12,142.08,4.87]
[1763493780040,3.87207498,142.12,142.08,4.87]
[1763493780238,4.59207498,142.12,142.08,4.87]
[1763493780673,4.09207498,142.12,142.08,4.87]
[1763493781276,3.87207498,142.13,142.08,4.87]
[1763493781448,0.72,142.11,142.08,4.87]
[1763493781782,3.87207498,142.12,142.08,4.87]
[1763493781949,4.59207498,142.12,142.08,4.87]
[1763493782150,0.72,142.12,142.08,4.87]
[1763493782361,4.59207498,142.12,142.08,4.87]
[1763493782681,3.87207498,142.1,142.07,4.18]
[1763493782855,3.87207498,142.08,142.05,0.2]
[1763493783060,3.87207498,142.08,142.05,4.38]
[1763493783255,0.72,142.07,142.05,4.38]
[1763493783458,4.59207498,142.07,142.05,0.2]
[1763493783966,0.72,142.06,142.05,0.2]
[1763493785891,4.18,142.1,142.05,0.2]
[1763493785892,4.59207498,142.08,142.05,0.2]
[1763493786058,4.59207498,142.09,142.05,0.2]
[1763493786562,0.72,142.08,142.05,0.2]
[1763493786977,22.71303498,142.11,142.06,0.69]
[1763493787163,22.71303498,142.11,142.06,4.87]
[1763493787357,0.72,142.1,142.06,4.87]
[1763493787556,0.72,142.1,142.06,4.18]
[1763493787777,8.77207498,142.13,142.07,0.69]
[1763493788051,8.77207498,142.13,142.06,4.87]
[1763493788052,3.87207498,142.11,142.06,4.87]
[1763493788476,0.72,142.1,142.07,0.69]
[1763493789577,5.29620115,142.12,142.07,0.69]
[1763493789884,0.72,142.11,142.07,0.69]
[1763493790067,0.72,142.12,142.07,4.56207498]
[1763493790264,4.59207498,142.12,142.08,0.69]
[1763493790466,0.72,142.12,142.08,0.69]
[1763493791168,0.72,142.12,142.08,4.56207498]
[1763493791486,0.72,142.12,142.08,0.69]
[1763493792092,0.72,142.12,142.08,4.56207498]
[1763493792389,0.72,142.12,142.08,0.69]
[1763493793294,4.56207498,142.15,142.1,18.12096]
[1763493793478,0.69,142.15,142.11,3.87207498]
[1763493793678,0.69,142.14,142.1,21.99303498]
[1763493793873,9.44620115,142.16,142.11,0.69]
[1763493794075,0.69,142.15,142.11,0.69]
[1763493794394,3.87207498,142.12,142.09,18.12096]
[1763493794566,3.87207498,142.12,142.07,18.81096]
[1763493794875,3.87207498,142.12,142.08,0.69]
[1763493795195,0.69,142.11,142.08,0.69]
[1763493795768,4.56207498,142.13,142.08,0.69]
[1763493795968,4.56207498,142.14,142.08,4.56207498]
[1763493796185,5.26620115,142.14,142.08,4.56207498]
[1763493796390,4.56207498,142.13,142.08,0.69]
[1763493796692,0.69,142.13,142.08,0.69]
[1763493796892,0.69,142.12,142.08,0.69]
[1763493797094,3.87207498,142.11,142.07,4.18]
[1763493797476,0.70412617,142.12,142.07,4.87]
[1763493797793,0.69,142.11,142.07,4.87]
[1763493797974,0.69,142.15,142.09,3.87207498]
[1763493798178,4.56207498,142.14,142.08,14.35090267]
[1763493798379,4.56207498,142.14,142.08,0.69]
[1763493798595,0.69,142.13,142.08,0.69]
[1763493798893,0.69,142.13,142.08,4.56207498]
[1763493799597,0.69,142.13,142.09,0.69]
[1763493799893,4.56207498,142.13,142.08,0.69]
[1763493800274,0.69,142.12,142.08,0.69]
[1763493800468,0.70412617,142.15,142.09,3.87207498]
[1763493800469,0.69,142.14,142.09,3.87207498]
[1763493800973,0.69,142.14,142.09,4.57207498]
[1763493801183,0.69,142.14,142.1,0.7]
[1763493802070,0.69,142.14,142.09,8.05207498]
[1763493802272,0.69,142.14,142.09,4.88]
[1763493802487,4.56207498,142.14,142.09,4.88]
[1763493802686,0.69,142.14,142.09,4.88]
[1763493802883,0.67,142.13,142.09,4.88]
[1763493803803,0.67,142.14,142.1,0.7]
[1763493804103,0.67,142.13,142.1,0.7]
[1763493804599,0.67,142.15,142.1,4.57207498]
[1763493804804,0.67,142.15,142.11,0.7]
[1763493806404,4.54207498,142.15,142.11,0.7]
[1763493806601,4.54207498,142.15,142.1,8.05207498]
[1763493806802,3.87207498,142.11,142.06,0.7]
[1763493807106,5.55412617,142.14,142.06,18.82096]
[1763493807407,3.87207498,142.11,142.06,0.7]
[1763493807575,3.87207498,142.1,142.06,0.7]
[1763493807780,18.12096,142.11,142.06,0.7]
[1763493808086,21.99303498,142.11,142.06,0.7]
[1763493808290,0.67,142.1,142.06,0.7]
[1763493809106,0.67,142.13,142.08,2.47980637]
[1763493809309,3.18393254,142.14,142.08,6.67980637]
[1763493809501,3.85393254,142.15,142.09,3.17980637]
[1763493809810,0.67,142.15,142.09,3.17980637]
[1763493810002,0.67,142.15,142.1,0.7]
[1763493810304,0.67,142.15,142.1,3.17980637]
[1763493810807,0.67,142.15,142.1,2.47980637]
[1763493810994,0.67,142.15,142.11,0.7]
[1763493812608,2.47980637,142.13,142.07,19.12844043]
[1763493812904,2.47980637,142.08,142.03,0.7]
[1763493813407,0.67,142.07,142.03,0.7]
[1763493814984,2.47980637,142.09,142.06,0.7]
[1763493815184,0.67,142.09,142.05,0.9]
[1763493815384,3.14980637,142.09,142.05,0.9]
[1763493815685,0.67,142.09,142.05,0.9]
[1763493815987,0.67,142.08,142.05,0.9]
[1763493818110,21.27076637,142.11,142.05,2.67980637]
[1763493818312,18.79096,142.11,142.06,3.17980637]
[1763493818610,19.49508617,142.11,142.06,3.17980637]
[1763493818808,0.67,142.1,142.06,0.7]
[1763493819115,0.67,142.1,142.07,0.7]
[1763493819315,0.67,142.1,142.06,0.7]
[1763493819486,0.67,142.1,142.06,3.17980637]
[1763493820592,0.70412617,142.11,142.07,0.7]
[1763493820801,4.2,142.12,142.07,3.17980637]
[1763493821004,0.70412617,142.13,142.08,2.47980637]
[1763493821215,0.67,142.11,142.07,18.82096]
[1763493821386,2.47980637,142.12,142.08,0.7]
[1763493821593,3.14980637,142.12,142.08,0.7]
[1763493823514,2.47980637,142.12,142.08,0.7]
[1763493823820,3.13980637,142.13,142.08,0.7]
[1763493824026,0.70412617,142.12,142.08,0.7]
[1763493824317,1.36412617,142.12,142.08,0.7]
[1763493826529,0.70412617,142.12,142.08,0.7]
[1763493826742,0.66,142.14,142.08,0.7]
[1763493827020,0.66,142.14,142.09,2.47980637]
[1763493827195,0.70412617,142.15,142.1,2.47980637]
[1763493827524,0.66,142.15,142.11,2.47980637]
[1763493827894,24.80076637,142.17,142.12,3.17980637]
[1763493827895,4.2,142.17,142.12,3.17980637]
[1763493828111,5.56412617,142.17,142.12,3.17980637]
[1763493828339,5.56412617,142.17,142.1,4.2]
[1763493828340,18.78096,142.16,142.13,0.7]
[1763493828517,18.12096,142.16,142.13,0.7]
[1763493829016,0.66,142.16,142.13,0.7]
[1763493829820,0.70412617,142.15,142.1,4.2]
[1763493830022,3.84393254,142.16,142.1,4.9]
[1763493830222,0.66,142.15,142.1,4.9]
[1763493830529,0.66,142.15,142.1,7.37980637]
[1763493830737,0.66,142.15,142.11,0.7]
[1763493830934,0.66,142.17,142.12,2.47980637]
[1763493831147,18.78096,142.17,142.12,2.47980637]
[1763493831331,18.78096,142.17,142.13,0.7]
[1763493831649,0.66,142.16,142.12,0.7]
[1763493833122,0.66,142.16,142.1,10.48882769]
[1763493833321,3.13980637,142.16,142.11,2.47980637]
[1763493833724,0.66,142.15,142.11,0.7]
[1763493833940,0.66,142.15,142.1,2.47980637]
[1763493834138,0.66,142.15,142.09,4.2]
[1763493834337,0.66,142.15,142.09,7.37980637]
[1763493834338,3.84393254,142.15,142.09,7.37980637]
[1763493834742,0.66,142.14,142.09,7.37980637]
[1763493835239,0.66,142.14,142.1,0.7]
[1763493841959,3.18393254,142.13,142.07,0.7]
[1763493842152,2.47980637,142.12,142.06,3.17980637]
[1763493842453,2.47980637,142.11,142.06,0.7]
[1763493842654,0.66,142.11,142.07,0.7]
[1763493844359,4.90412617,142.13,142.07,0.7]
[1763493844561,1.36412617,142.13,142.07,4.9]
[1763493844740,1.36412617,142.13,142.09,2.47980637]
[1763493844942,0.66,142.13,142.09,2.47980637]
[1763493845140,0.66,142.13,142.09,3.17980637]
[1763493845439,0.66,142.13,142.09,0.7]
[1763493845634,3.13980637,142.13,142.07,3.17980637]
[1763493845834,0.70412617,142.12,142.07,3.17980637]
[1763493846067,3.84393254,142.12,142.07,0.7]
[1763493846664,0.66,142.11,142.07,0.7]